{"text_format":"1","workbook":"xlsx","n_sheets":15,"sheets":["NAVODILA","SPLOŠNO","DOSTOPNOST","UPORABNIKI","PODPROGRAMI","KADRI","FINANCE","POTREBE","DRUGO","NAVODILA EVAPRO","EVALVACIJA","KAPACITETE 1","KAPACITETE 2","matrika","matrika_3"],"not_rendered":{"charts":0,"images":0,"macros":1,"external_links":0,"defined_names":11,"comments":1,"pivot_tables":0},"unopened":[],"bounds":{"document_bytes":16777216,"sheet_cells":100000,"rows_first":2000,"rows_last":500,"rows_between":2000,"halvings":0,"cell_chars":16384,"cell_head_chars":4096},"cells_cut":0,"cells_raw":0,"read":"whole","date_system":"1900"}

{"sheet":"NAVODILA","index":0,"n_rows":121,"n_cols":11,"rows_kept":121,"cut":false,"hidden":false,"merged":[[0,0,0,8],[2,1,2,7],[4,1,4,7],[20,1,20,7],[5,1,5,5]]}
["NAVODILA ZA IZPOLNJEVANJE"]
[]
[null,"Spoštovani, \npred vami je posodobljen obrazec za poročanje - Končno poročilo o izvajanju socialnovarstvenega programa v obdobju od 1. 1. 2023 do 31. 12. 2023.\n\nObrazec vsebuje več listov, in sicer odvisno od vrste programa:\n- splošno, dostopnost, uporabniki, podprogrami, kadri, finance, potrebe, drugo, evalvacija (opcijsko), kapacitete (opcijsko).\n\nPOMEMBNO: Pri izpolnjevanju vas prosimo, da odgovarjate v za to namenjene celice (sive barve). Celice, označene z zeleno barvo so avtomatski seštevki oz. preverjanje, teh celic ne spreminjajte; celice, označene z rumeno barvo pa določajo izpolnitev kot izbirni seznam (kliknite na puščico v celici).\n\nV primeru tehničnih težav se lahko obrnete na IRSSV, in sicer na e-pošto: svp.irssv@siol.net. Če vam e-pošto zavrača, pri pošiljanju naredite stisnjeno datoteko zbirnika (npr.: .zip, .rar ipd)."]
[]
[null,"ZAČETEK: Prosimo, izberite skupino in podskupino vašega programa, za tem označite, ali je vaš program verifirican oz. vključen v sistem EVAPRO. Ko boste označili vse korake, se vam bodo odprli zavihki za izpolnjevanje."]
[null,"Opomba: V kolikor niste prepričani, v katero podskupino spada program, pustite prazno oz. preverite v končnem poročilu na",null,null,null,null,"POVEZAVI"]
[]
[]
[]
[null,null,"KORAK 1",null,"KORAK 2",null,"KORAK 3"]
[null,null,"Prosimo, najprej izberite vašo skupino programov:",null,"Prosimo, izberite vašo podskupino programov:",null,"Ali je vaš program verificiran in/ali vključen v sistem EVAPRO?"]
[]
[]
[]
[]
[]
[]
[]
[]
[]
[null,"KONEC: Ko boste z izpolnjevanjem končali, kliknite na spodnji gumb \"NATISNI\" in se bo obrazec avtomatsko shranil v PDF datoteko."]
[]
[]
[]
[]
[]
[]
[]
[]
[]
[]
[]
[]
[]
[]
[]
[]
[]
[]
[]
[]
[]
[]
[]
[]
[]
[]
[]
[]
[]
[]
[]
[]
[]
[]
[]
[]
[]
[]
[]
[]
[]
[]
[]
[]
[]
[]
[]
[]
[]
[]
[]
[]
[]
[]
[]
[]
[]
[]
[]
[]
[]
[]
[]
[]
[]
[]
[]
[]
[]
[]
[]
[]
[]
[]
[]
[]
[]
[]
[]
[]
[]
[]
[]
[]
[]
[]
[]
[]
[]
[]
[]
[]
[]
[null,"NASILJE","ZASVOJENI","DUŠEVNO_ZDRAVJE","BREZDOMCI","OTROCI_MLADOSTNIKI","STAREJŠI","INVALIDI","PSIHOSOCIALNA_POMOČ","ROMI","DRUGI_PROGRAMI"]
[null,"MATERINSKI DOMOVI","PREPOVEDANE DROGE – VISOKI PRAG","STANOVANJSKE SKUPINE","NAMESTITVENI PROGRAMI","DNEVNI CENTRI ZA OTROKE IN MLADOSTNIKE S PREVENTIVNIM DELOM IN SVETOVANJEM","MEDGENERACIJSKA SREDIŠČA","PROGRAMI ZA SPODBUJANJE SOCIALNE VKLJUČENOSTI IN NEODVISNEGA ŽIVLJENJA INVALIDOV","SPECIALIZIRANI PROGRAMI PSIHOSOCIALNE POMOČI OTROKOM, ODRASLIM ALI DRUŽINAM","PROGRAMI ZA ROME","DRUGI PROGRAMI"]
[null,"VARNE HIŠE, ZATOČIŠČA IN KRIZNI CENTRI","PREPOVEDANE DROGE - NIZKI PRAG","DNEVNI CENTRI","DNEVNI PROGRAMI","PREVENTIVNI PROGRAMI","PROGRAMI ZA STAREJŠE"]
[null,"SVETOVALNICE","PREPOVEDANE DROGE – PREVENTIVNI PROGRAMI","INFORMACIJSKE PISARNE IN SVETOVALNICE","DELOŽACIJE","PROGRAMI TELEFONSKEGA SVETOVANJA","PROGRAMI ZA OSEBE Z DEMENCO IN NJIHOVE SVOJCE"]
[null,"PROGRAMI PREVENTIVE","ALKOHOLIZEM","PROGRAMI TELEFONSKEGA SVETOVANJA"]
[null,"PROGRAMI TELEFONSKEGA SVETOVANJA","MOTNJE HRANJENJA","ZAGOVORNIŠTVO"]
[null,null,"PREPREČEVANJE PREKOMERNE RABE IKT"]

{"sheet":"SPLOŠNO","index":1,"n_rows":23,"n_cols":3,"rows_kept":23,"cut":false,"hidden":true,"merged":[[22,1,22,2],[1,1,3,2],[0,1,0,3]]}
[null,"Končno poročilo o izvajanju socialnovarstvenega programa \nv obdobju od 1. 1. 2023 do 31. 12. 2023"]
[null,"PROSIMO, DA POROČILO IZPOLNJUJETE KRATKO IN JEDRNATO, DRŽITE SE NAVODIL IN NE SPREMINJAJTE STRUKTURE OBRAZCA.\nNa MDDSZ po redni pošti posredujte izpolnjen in podpisan obrazec (pdf) skupaj s prilogami: MDDSZ, Štukljeva cesta  44, 1000 Ljubljana\nNa IRSSV posredujte le izpolnjen končni obrazec v Excelu po e-pošti: svp.irssv@siol.net"]
[]
[]
[]
[null,"Skupina, podskupina, evalvacija:",{"$f":"Skupina&\"; \"&NAVODILA!E16&\"; \"&NAVODILA!G16","v":"; ; "}]
[null,"Vrsta programa (izberite iz seznama):"]
[null,"Obdobje financiranja (izberite iz seznama):"]
[null,"Naziv izvajalca oz. organizacije:"]
[null,"Naziv programa: "]
[null,"Številka sklenjene pogodbe: "]
[null,"Naslov izvajalca oz. organizacije:"]
[null,"Telefon izvajalca, programa:                                                 "]
[null,"Elektronski naslov:"]
[null,"Spletna stran (opcijsko):"]
[null,"Tip organizacije, v kateri se izvaja program (izberite iz seznama):"]
[null,"Navedite skrbnika pogodbe na MDDSZ (naveden v pogodbi):"]
[]
[null,"Kraj in datum:"]
[]
[null,"Strokovni delavec/vodja programa + odgovorna oseba\n(navedite osebe in podpišite):"]
[]
[null,"Rok za predložitev končnega poročila: 15. 2. 2024"]

{"sheet":"DOSTOPNOST","index":2,"n_rows":33,"n_cols":8,"rows_kept":33,"cut":false,"hidden":true,"merged":[[0,0,0,8],[2,1,2,8],[32,1,32,2],[3,5,3,6],[3,4,4,4],[3,7,4,7],[3,3,4,3],[3,2,4,2],[3,1,4,1]]}
["DOSTOPNOST PROGRAMOV - za obdobje od 1. 1. 2023 do 31. 12. 2023"]
[]
[1,"Prosimo navedite, v katerih občinah se izvaja program in vpišite število enot oz. lokacij programa v tej občini. Programi, ki imate nastanitve, vpišite še število kapacitet oz. postelj po občinah.\nOpomba: Programi telefonskega svetovanja/Programi za starejše, ki se izvajajo po celotni Sloveniji - označite na koncu 'DA' in pri občinah izvajanja vpišite občino sedeža organizacije oz. programa; \nProgrami, kjer se izvaja storitev v odprtih stanovanjskih skupinah oz. na domu uporabnika: teh lokacij ne beležite med občine, samo navedite jih v opombo."]
[null,null,"Občina \n(izberite iz seznama):","Vpišite skupno število enot oz. lokacij v občini","Prosimo, navedite, kaj vse ste zajeli \n(npr. 3 lokacije terenskga dela in 1 enota DC; 1 lokacija sedež in 1 enota SS)","ŠTEVILO PRENOČITVENIH KAPACITET NA DAN 31. 12., PO OBČINAH",null,"OPOMBA "]
[null,null,null,null,null,"Število formalno priznanih prenočitvenih kapacitet - postelj","Število rezervnih prenočitvenih kapacitet - postelj"]
[null,"OBČINA IZVAJANJA 1"]
[null,"OBČINA IZVAJANJA 2"]
[null,"OBČINA IZVAJANJA 3"]
[null,"OBČINA IZVAJANJA 4"]
[null,"OBČINA IZVAJANJA 5"]
[null,"OBČINA IZVAJANJA 6"]
[null,"OBČINA IZVAJANJA 7"]
[null,"OBČINA IZVAJANJA 8"]
[null,"OBČINA IZVAJANJA 9"]
[null,"OBČINA IZVAJANJA 10"]
[null,"OBČINA IZVAJANJA 11"]
[null,"OBČINA IZVAJANJA 12"]
[null,"OBČINA IZVAJANJA 13"]
[null,"OBČINA IZVAJANJA 14"]
[null,"OBČINA IZVAJANJA 15"]
[null,"OBČINA IZVAJANJA 16"]
[null,"OBČINA IZVAJANJA 17"]
[null,"OBČINA IZVAJANJA 18"]
[null,"OBČINA IZVAJANJA 19"]
[null,"OBČINA IZVAJANJA 20"]
[null,"OBČINA IZVAJANJA 21"]
[null,"OBČINA IZVAJANJA 22"]
[null,"OBČINA IZVAJANJA 23"]
[null,"OBČINA IZVAJANJA 24"]
[null,"OBČINA IZVAJANJA 25"]
[null,"Skupaj",{"$f":"COUNTA(C6:C30)","v":0},{"$f":"SUM(D6:D30)","v":0},null,{"$f":"SUM(F6:F30)","v":0},{"$f":"SUM(G6:G30)","v":0}]
[]
[null,"Program se izvaja po celotni Sloveniji \n(izberite iz seznama):"]

{"sheet":"UPORABNIKI","index":3,"n_rows":75,"n_cols":6,"rows_kept":75,"cut":false,"hidden":true,"merged":[[6,1,6,2],[7,1,7,2],[8,1,8,2],[20,1,20,8],[11,1,11,8],[14,1,14,8],[15,1,15,2],[16,1,16,2],[17,1,17,2],[10,1,10,8],[0,0,0,9],[2,1,2,8],[3,1,3,2],[4,1,4,2],[5,1,5,2],[64,1,64,3],[65,1,65,3],[69,1,69,8],[70,3,70,8],[71,3,71,8],[56,1,56,8],[57,1,57,3],[35,1,35,8],[38,1,38,8],[39,1,39,8],[42,1,42,8],[44,1,45,1],[52,3,52,5],[43,1,43,2],[46,1,49,1],[51,1,51,2],[52,1,52,2],[53,1,53,8],[58,1,58,3],[74,3,74,8],[59,1,59,3],[60,1,60,3],[61,1,61,3],[66,1,66,2],[66,3,66,4],[73,1,73,2],[73,3,73,8],[74,1,74,2],[70,1,70,2],[71,1,71,2],[72,1,72,2],[72,3,72,8],[62,1,62,3],[63,1,63,3]]}
["VSEBINSKO POROČILO - UPORABNIKI - za obdobje od 1. 1. 2023 do 31. 12. 2023"]
[]
[1,"Prosimo, navedite skupno število vseh (različnih) uporabnikov glavnega programa in v podprogramih, en uporabnik se šteje samo enkrat na leto. Navedite tudi število uporabnikov glavnega programa na dan 1. 12. in predvideno število uporabnikov, kot ste jih navedli v prijavi na javni razpis."]
[null,"Skupaj število različnih uporabnikov"]
[null,"Število uporabnikov v t. i. GLAVNEM programu"]
[null,"Število uporabnikov v t. i. GLAVNEM programu na dan 1. 12. 2023 (izpis pridobite iz EVAPRO, če tega nimate oz. nimate točnega podatka, vpišite oceno števila uporabnikov na ta dan)"]
[null,"Število uporabnikov v PODPROGRAMIH"]
[null,"Predvideno število uporabnikov v prijavi na razpis"]
[]
[]
[2,"Obsežnejši oziroma kompleksnejši programi, ki svoje dejavnosti ne razdeljujete na glavni del in podprograme, prosimo, navedite dodatna pojasnila in razčlenite skupno število različnih uporabnikov (npr. N v sprejemnih centrih, N v reintegraciji, N v zavetišču, itd.)."]
[]
[]
[]
[3,"Če program obsega tudi delo v skupinah (predvsem v programih za starejše), prosimo navedite naslednje:"]
[null,"Število skupin"]
[null,"Povprečno število uporabnikov na skupino"]
[null,"Število srečanj na leto"]
[]
[]
[4,"Prosimo, navedite število vključenih uporabnikov po mesecih ter povprečno število ur aktivne* vključenosti uporabnikov v posamezne dejavnosti programa na mesec, ki so vključeni v t. i. glavni del programa."]
[null,"Mesec","Število uporabnikov","Povprečno število ur aktivne* vključenosti enega uporabnika na mesec"]
[null,"januar "]
[null,"februar "]
[null,"marec "]
[null,"april "]
[null,"maj "]
[null,"junij "]
[null,"julij"]
[null,"avgust"]
[null,"september"]
[null,"oktober"]
[null,"november"]
[null,"december"]
[null,"Povprečno število na mesec",{"$f":"AVERAGE(C23:C34)","v":{"$error":"#DIV/0!"}},{"$f":"AVERAGE(D23:D34)","v":{"$error":"#DIV/0!"}}]
[null,"Opomba:\n*Aktivna vključenost pomeni, da je uporabnik aktivno vključen v dejavnosti programa. Torej pri programih, ki uporabnikom nudijo bivanje, ne vpisujete 720 ur na mesec, ampak število ur aktivne vključenosti uporabnika v program na mesec."]
[]
[]
[5,"V primeru odstopanja števila uporabnikov (od predvidenega števila na razpisu) prosimo, navedite pojasnilo."]
[]
[]
[]
[6,"Prosimo, navedite število uporabnikov GLAVNEGA programa glede na spol in starost. Prosimo zapišite oceno, če nimate točnih podatkov."]
[null,"Starostna skupina",null,"Število moških","Število žensk","Spol ni znan oz. ni definiran"]
[null,"MLADOLETNI","do vključno 15 let"]
[null,null,"nad 15 let do 18 let"]
[null,"POLNOLETNI","nad 18 let do 35 let"]
[null,null,"nad 35 let do 50 let"]
[null,null,"nad 50 let do 65 let"]
[null,null,"nad 65 let"]
[null,"ANONIMNI","starost in/ali spol nista znana oz. definirana"]
[null,"Skupaj uporabnikov GLAVNEGA programa ",null,{"$f":"SUM(D45:D51)","v":0},{"$f":"SUM(E45:E51)","v":0},{"$f":"SUM(F45:F51)","v":0}]
[null,"Ujemanje s prvo preglednico: ","Ujemanje: ",{"$f":"IF((D5=(D52+E52+F52)),\"SEŠTEVEK SE UJEMA\",\"SEŠTEVEK SE NE UJEMA - PREVERITE\")","v":"SEŠTEVEK SE UJEMA"}]
[null,"Opomba:\nIzvajalci, ki uporabljate bazo EVAPRO in beležite drugačne starostne skupine, si lahko po hitrem postopku ustvarite tabelo za izpis z navedenimi starostnimi skupinami - podrobno v »Navodilih za uporabo baze Evapro© - november 2023«, poglavje »9.1.4 Po star. skupinah«, stran 78-80. "]
[]
[]
[7,"Prosimo, navedite število uporabnikov glede na čas/obdobje njihove vključitve v program. Upoštevajte vse uporabnike. Seštevek uporabnikov mora tako biti enak podatku različnih uporabnikov iz prve preglednice. Prosimo zapišite oceno, če nimate točnih podatkov."]
[null,"Število uporabnikov, ki so program obiskovali/bili vključeni…",null,null,"Število uporabnikov"]
[null,"vsak dan ali petkrat na teden"]
[null,"enkrat ali večkrat na teden, vendar ne vsak (delovni) dan"]
[null,"večkrat/nekajkrat na mesec"]
[null,"enkrat na mesec"]
[null,"nekajkrat na leto"]
[null,"enkrat na leto"]
[null,"uporabniki, za katere ni znano, kako pogosto so obiskovali/bili vključeni v program"]
[null,"Skupaj število različnih uporabnikov ",null,null,{"$f":"SUM(E59:E65)","v":0}]
[null,"Ujemanje s prvo preglednico: ","Ujemanje: ",{"$f":"IF((D4=(E66)),\"SEŠTEVEK SE UJEMA\",\"SEŠTEVEK SE NE UJEMA - PREVERITE\")","v":"SEŠTEVEK SE UJEMA"}]
[]
[]
[8,"Prosimo, opredelite ciljno skupino uporabnikov - značilnosti uporabnikov, ki jim je program namenjen:"]
[null,"po spolu"]
[null,"po starostnih skupinah"]
[null,"družinske razmere in socialno omrežje"]
[null,"glede na težavo(e), ki jo/jih imajo"]
[null,"druge pomembne značilnosti"]

{"sheet":"PODPROGRAMI","index":4,"n_rows":16,"n_cols":5,"rows_kept":16,"cut":false,"hidden":true,"merged":[[0,0,0,9],[2,1,2,8],[15,1,15,4]]}
["VSEBINSKO POROČILO - PODPROGRAMI - za obdobje od 1. 1. 2023 do 31. 12. 2023"]
[]
[1,"Če v okviru programa izvajate podprograme (npr. predavanja, e-svetovanje, skupina za starše ipd.), ki niso del glavnega programa, prosimo navedite število uporabnikov za vsak podprogram posebej. V podprogramih, kjer beležite število uporabnikov, izpolnite 2. in 4. stolpec. V podprogramih, kjer beležite le število izvajanj, izpolnite le stolpec 3. Če beležite opravljene storitve in NE števila uporabnikov (npr. telefonski klici), posebej poudarite ali gre za storitev ali uporabnika."]
[null,"Podprogram","Število različnih uporabnikov","Število storitev","Povprečno število ur vključenosti enega uporabnika na mesec/pri telefonskih klicih navedite povprečni čas pogovora"]
[]
[]
[]
[]
[]
[]
[]
[]
[]
[]
[]
[null,"po potrebi vstavite vrstice - ne briši vrstic"]

{"sheet":"KADRI","index":5,"n_rows":70,"n_cols":8,"rows_kept":70,"cut":false,"hidden":true,"merged":[[3,5,3,6],[4,5,4,6],[5,5,5,6],[6,5,6,6],[7,5,7,6],[2,1,2,8],[52,3,52,5],[53,3,53,5],[54,1,54,5],[47,3,47,5],[48,3,48,5],[49,3,49,5],[50,3,50,5],[51,3,51,5],[42,3,42,5],[43,3,43,5],[44,3,44,5],[45,3,45,5],[46,3,46,5],[28,7,28,8],[29,7,29,8],[36,7,36,8],[37,7,37,8],[31,7,31,8],[32,7,32,8],[33,7,33,8],[34,7,34,8],[35,7,35,8],[0,0,0,9],[10,1,10,8],[41,1,41,8],[59,1,59,2],[57,1,57,8],[38,1,38,8],[11,7,11,8],[12,7,12,8],[13,7,13,8],[14,7,14,8],[15,7,15,8],[18,7,18,8],[19,7,19,8],[20,7,20,8],[21,7,21,8],[22,7,22,8],[65,7,65,8],[66,7,66,8],[67,1,67,8],[3,2,3,3],[4,2,4,3],[5,2,5,3],[6,2,6,3],[7,2,7,3],[16,7,16,8],[17,7,17,8],[23,7,23,8],[24,7,24,8],[25,7,25,8],[26,7,26,8],[27,7,27,8],[30,7,30,8]]}
["VSEBINSKO POROČILO - KADRI - za obdobje od 1. 1. 2023 do 31. 12. 2023"]
[]
[1,"Prosimo, navedite obseg zaposlitev, ki jih imate sofinancirane po pogodbi z MDDSZ:"]
[null,"Vrsta kadra","Obseg zaposlitev, financiranih od MDDSZ \n(npr. 100 % zaposlitev vpišite kot 1; \n50 % zaposlitev vpišite kot 0,5 ipd.)",null,"Kontrola obsega\n(iz stolpca G)","Obseg dodatnih zaposlitev, financiranih od dodatnih sredstev MDDSZ po 82. členu ZIUOPZP\n(vpišite število sofinanciranih ur)"]
[null,"strokovni vodja",null,null,{"$f":"(SUMIF($D$12:$D$38,\"strokovni vodja\",$G$12:$G$38)/2088)","v":0}]
[null,"strokovni delavec",null,null,{"$f":"(SUMIF($D$12:$D$38,\"strokovni delavec\",$G$12:$G$38)/2088)","v":0}]
[null,"višji laični delavec",null,null,{"$f":"(SUMIF($D$12:$D$38,\"višji laični delavec\",$G$12:$G$38)/2088)","v":0}]
[null,"nižji laični delavec",null,null,{"$f":"(SUMIF($D$12:$D$38,\"nižji laični delavec\",$G$12:$G$38)/2088)","v":0}]
[]
[]
[2,"Prosimo, navedite zaposlene v programu, njihovo smer in stopnjo izobrazbe, delovno mesto, vrsto zaposlitve, število opravljenih ur v programu in vire financiranja zaposlitve. Če je zaposleni v programu sofinanciran iz drugih virov, npr. občine, navedite število ur sofinanciranja za vsak vir posebej. Če je zaposlen na dveh delovnih mestih, npr. pol na strokovnem delavcu, pol na višjem laičnem v istem programu - ga vpišite 2x z ustreznimi podatki."]
[null,"Ime in priimek","Izobrazba\n(smer/ stopnja)","Delovno mesto\n(izberite ustrezen odgovor)","Vrsta zaposlitve\n(izberite ustrezen odgovor)","Skupaj število opravljenih ur, \nne glede na financerja","Število opravljenih ur, financiranih iz razpisa  MDDSZ","Število opravljenih ur \npo drugih financerjih\n(npr. OBČINA: 1044; FIHO: 500; ZRSZ: 544;\nposebej navedite tudi ure iz  sredstev MDDSZ po 82. členu ZIUOPZP)"]
[]
[]
[]
[]
[]
[]
[]
[]
[]
[]
[]
[]
[]
[]
[]
[]
[]
[]
[]
[]
[]
[]
[]
[]
[]
[]
[null,"po potrebi vstavite vrstice - ne briši vrstic"]
[]
[]
[3,"Prosimo, navedite še ostale plačane izvajalce programa (študente, zunanje sodelavce ipd.) ter navedite njihovo vrsto pogodbo in vrsto dela.\nOPOMBA: Pri osebah, financiranih iz dodatnih sredstev MDDSZ po 82. členu ZIUOPZP, to posebej označite v stolpcu \"Vrsta dela\"."]
[null,"Ime in priimek","Vrsta pogodbe","Vrsta dela"]
[]
[]
[]
[]
[]
[]
[]
[]
[]
[]
[]
[null,"po potrebi vstavite vrstice - ne briši vrstic"]
[]
[]
[4,"Prosimo, navedite število vseh ur, ki so jih opravili prostovoljci v programu. Navedite prostovoljce glede na spol in število opravljenih ur ter opredelite vrsto prostovoljnega dela."]
[]
[null,"Skupaj opravljeno število ur prostovoljnega dela"]
[]
[null,"Prostovoljci po spolu","Število prostovoljcev","Število opravljenih ur","Število prostovoljcev","Vrsta dela glede na določila Zakona o prostovoljstvu*","Število prostovoljcev"]
[null,null,null,"0 do 24 ur",null,"organizacijsko delo"]
[null,null,null,"25 do 100 ur",null,"strokovno delo - na področju socialnega varstva"]
[null,"Ženske",null,"101 do 500 ur",null,"strokovno delo - drugo"]
[null,"Moški",null,"501 ur in več",null,"drugo delo",null,"Kontrola (vsa tri polja se morajo ujemati)"]
[null,"Skupaj število prostovoljcev",{"$f":"C65+C66","v":0},"Skupaj število prostovoljcev",{"$f":"SUM(E63:E66)","v":0},"Skupaj število prostovoljcev",{"$f":"SUM(G63:G66)","v":0},{"$f":"IF(AND(C67=E67,E67=G67),\"OK\",\"SEŠTEVEK NI OK-PREVERITE\")","v":"OK"}]
[null,"Opomba:\n* Zakon o prostovoljstvu (Uradni list RS, število 10/11, 16/11 – popr. in 82/15), 23.a člen, vrste prostovoljskega dela:\n(1) Vrste prostovoljskega dela iz druge alineje drugega odstavka 23. člena so: organizacijsko delo, ki je opravljanje prostovoljskega dela vodenja projektov in programov, njihova organizacija ali organizacija dela projekta ali programa in opravljanje mentorstva prostovoljcem; vsebinsko delo, ki je opravljanje prostovoljskega dela, za izvajanje katerega so potrebna posebna znanja in veščine ali pa gre za osnovno prostovoljsko delo posameznega programa ali projekta. Posebna znanja in veščine so znanja in veščine, ki jih prostovoljec pridobi v vzgojno izobraževalnem sistemu ali na usposabljanju prostovoljske organizacije; drugo delo, ki je opravljanje prostovoljskega dela kot pomožnega dela ali dela za podporo prostovoljskemu programu ali projektu ali dela za opravljanje katerega ni potrebno posebno usposabljanje."]
[]
[null,"Če prostovoljci prejemajo denarno nagrado, prosimo navedite višino nagrade (plačilo na uro) in skupni znesek, ki je bil porabljen v ta namen:"]

{"sheet":"FINANCE","index":6,"n_rows":102,"n_cols":9,"rows_kept":102,"cut":false,"hidden":true,"merged":[[42,1,42,5],[63,1,63,2],[64,1,64,2],[54,1,54,2],[43,1,43,2],[44,1,44,2],[45,1,45,2],[47,1,47,2],[48,1,48,2],[46,1,46,5],[60,1,60,2],[62,1,62,5],[61,1,61,2],[56,1,56,2],[0,0,0,9],[2,0,2,9],[4,1,4,8],[7,1,7,8],[27,1,27,8],[8,5,8,6],[22,1,22,2],[24,1,24,2],[14,1,14,2],[15,1,15,2],[16,1,16,2],[17,1,17,2],[18,1,18,2],[9,1,9,2],[8,3,8,4],[8,7,8,8],[36,1,36,2],[23,1,23,8],[19,1,19,2],[8,1,8,2],[34,1,34,2],[34,4,34,5],[11,1,11,2],[33,1,33,8],[10,1,10,2],[12,1,12,2],[13,1,13,2],[20,1,20,2],[21,1,21,2],[30,2,30,6],[35,1,35,2],[81,1,81,2],[82,1,82,2],[37,1,37,2],[58,1,58,2],[59,1,59,2],[57,1,57,2],[55,1,55,2],[49,1,49,2],[50,1,50,2],[51,1,51,2],[52,1,52,2],[53,1,53,5],[38,1,38,2],[39,1,39,2],[41,1,41,2],[40,1,40,2],[80,1,80,5],[87,1,87,5],[67,1,67,8],[96,1,96,5],[84,1,84,2],[86,1,86,2],[75,1,75,2],[77,1,77,2],[78,1,78,2],[83,1,83,2],[85,1,85,2],[68,1,68,2],[70,1,70,2],[71,1,71,2],[69,1,69,2],[72,1,72,2],[68,4,68,5],[98,1,98,2],[101,0,101,9],[89,1,89,2],[92,1,92,2],[93,1,93,2],[94,1,94,2],[95,1,95,2],[90,1,90,2],[91,1,91,2],[97,1,97,2],[88,1,88,2],[74,1,74,2],[73,1,73,2],[76,1,76,5],[79,1,79,2]]}
["FINANČNO POROČILO - za obdobje od 1. 1. 2023 do 31. 12. 2023"]
[]
["OPOZORILO! Listine (račune, izplačilne liste, itd.), iz katerih je razvidno, da so bila sredstva porabljena namensko za izvajanje programa, hranite za morebitni nadzor programa."]
[]
[1,"Prosimo, preverite skupni odstotek prihodkov, pridobljenih od drugih sofinancerjev programa (% od celotne vrednosti programa)."]
[null,{"$f":"SUM(G13:G23)","v":{"$error":"#DIV/0!"}}]
[]
[null,"Prosimo, navedite vire financiranja oz. vse sofinancerje programa, odobrena sredstva za izvajanje programa ter višino sredstev. "]
[null,"PRIHODKI PROGRAMA",null,"Vsa zaprošena sredstva",null,"Vsa prejeta sredstva",null,"Priložena dokazila v višini najmanj 20 %"]
[null,"Sofinancer programa",null,"Znesek v EUR","V odstotkih","Znesek v EUR","V odstotkih","Znesek v EUR","V odstotkih"]
[null,"MDDSZ (kot izhaja iz sklepa razpisa oz. pogodbe)",null,null,{"$f":"D11/$D$25","v":{"$error":"#DIV/0!"}},null,{"$f":"F11/$F$25","v":{"$error":"#DIV/0!"}}]
[null,"Dodatna, sredstva, prejeta od MDDSZ po 82. členu ZIUOPZP",null,null,null,null,{"$error":"#DIV/0!"}]
[null,"Občine (seštejte znesek vseh občin skupaj)",null,null,{"$f":"D13/$D$25","v":{"$error":"#DIV/0!"}},null,{"$error":"#DIV/0!"},null,{"$f":"H13/$F$25","v":{"$error":"#DIV/0!"}}]
[null,"Donacije",null,null,{"$error":"#DIV/0!"},null,{"$error":"#DIV/0!"},null,{"$error":"#DIV/0!"}]
[null,"FIHO",null,null,{"$error":"#DIV/0!"},null,{"$error":"#DIV/0!"},null,{"$error":"#DIV/0!"}]
[null,"ZRSZ",null,null,{"$error":"#DIV/0!"},null,{"$error":"#DIV/0!"},null,{"$error":"#DIV/0!"}]
[null,"Drugi proračunski viri skupaj (navedite: _____)",null,null,{"$error":"#DIV/0!"},null,{"$error":"#DIV/0!"},null,{"$error":"#DIV/0!"}]
[null,"Uporabniki",null,null,{"$error":"#DIV/0!"},null,{"$error":"#DIV/0!"},null,{"$error":"#DIV/0!"}]
[null,"Članarine",null,null,{"$error":"#DIV/0!"},null,{"$error":"#DIV/0!"},null,{"$error":"#DIV/0!"}]
[null,"Lastna sredstva",null,null,{"$error":"#DIV/0!"},null,{"$error":"#DIV/0!"},null,{"$error":"#DIV/0!"}]
[null,"Ovrednoteno prostovoljsko delo",null,null,{"$error":"#DIV/0!"},null,{"$error":"#DIV/0!"},null,{"$error":"#DIV/0!"}]
[null,"Brezplačen najem prostorov",null,null,{"$error":"#DIV/0!"},null,{"$error":"#DIV/0!"},null,{"$error":"#DIV/0!"}]
[null,"Drugo (navedite: _____)",null,null,{"$error":"#DIV/0!"},null,{"$error":"#DIV/0!"},null,{"$error":"#DIV/0!"}]
[null,"po potrebi vstavite vrstice in prekopirajte formule za preračun - ne briši vrstic"]
[null,"SKUPAJ",null,{"$f":"SUM(D11:D24)","v":0},{"$error":"#DIV/0!"},0,{"$error":"#DIV/0!"},0,{"$error":"#DIV/0!"}]
[]
[]
["1a","Ali ste del prejetih sredstev od MDDSZ vračali? Prosimo, označite odgovor in vpišite znesek vračila. Opomba: Tudi če ste znesek vračali, ga upoštevajte v tabeli 1 (tam vpišite toliko sredstev, kot je bilo navedeno na sklepu razpisa).\nOPOMBA: V tabeli ne upoštevajte zneskov sredstev, prejetih od MDDSZ po 82. členu ZIUOPZP."]
[null,"izberite ustrezen odgovor"]
[null,"Znesek v EUR"]
[null,"Opomba "]
[]
[]
[2,"Prosimo, navedite vse odhodke programa. Po potrebi dodajte vrstice, še posebej, če imate več različnih stroškov pri odhodkih. \n"]
[null,"ODHODKI PROGRAMA",null,"Znesek v EUR","V odstotkih"]
[null,"1. Stroški dela redno zaposlenih ",null,{"$f":"SUM(D37:D42)","v":0},null,{"$f":"D36/$D$65","v":{"$error":"#DIV/0!"}}]
[null," - plače zaposlenih ",null,null,{"$f":"D37/$D$65","v":{"$error":"#DIV/0!"}}]
[null,"- delodajalčeve dajatve za socialno varnost",null,null,{"$error":"#DIV/0!"}]
[null,"- regres za letni dopust",null,null,{"$error":"#DIV/0!"}]
[null,"- prevoz na delo",null,null,{"$error":"#DIV/0!"}]
[null,"- stroški prehrane",null,null,{"$error":"#DIV/0!"}]
[null,"- jubilejne nagrade",null,null,{"$error":"#DIV/0!"}]
[null,"po potrebi vstavite vrstice in prekopirajte formule za preračun - ne briši vrstic"]
[null,"2. Stroški zunanjih izvajalcev, vezanih neposredno na program ",null,{"$f":"SUM(D45:D46)","v":0},null,{"$f":"D44/$D$65","v":{"$error":"#DIV/0!"}}]
[null,"- delo na podlagi pogodb",null,null,{"$f":"D45/$D$65","v":{"$error":"#DIV/0!"}}]
[null,"- strošek študentskega dela",null,null,{"$f":"D46/$D$65","v":{"$error":"#DIV/0!"}}]
[null,"po potrebi vstavite vrstice in prekopirajte formule za preračun - ne briši vrstic"]
[null,"3. Povračilo stroškov v zvezi z delom na programu za prostovoljce na osnovi sklenjenih dogovorov",null,{"$f":"SUM(D49:D53)","v":0},null,{"$f":"D48/$D$65","v":{"$error":"#DIV/0!"}}]
[null,"- nagrade prostovoljcem",null,null,{"$f":"D49/$D$65","v":{"$error":"#DIV/0!"}}]
[null,"- potni stroški za prostovoljce",null,null,{"$f":"D50/$D$65","v":{"$error":"#DIV/0!"}}]
[null,"- stroški prehrane za prostovoljce",null,null,{"$f":"D51/$D$65","v":{"$error":"#DIV/0!"}}]
[null," - ovrednoteno prostovoljsko delo",null,null,{"$f":"D52/$D$65","v":{"$error":"#DIV/0!"}}]
[null," - drugi stroški za prostovoljce (natančno opredelite te stroške)",null,null,{"$f":"D53/$D$65","v":{"$error":"#DIV/0!"}}]
[null,"po potrebi vstavite vrstice in prekopirajte formule za preračun - ne briši vrstic"]
[null,"4. Stroški materiala ter storitev",null,{"$f":"SUM(D56:D62)","v":0},null,{"$f":"D55/$D$65","v":{"$error":"#DIV/0!"}}]
[null," - energija – elektrika",null,null,{"$f":"D56/$D$65","v":{"$error":"#DIV/0!"}}]
[null,"- ogrevanje prostorov",null,null,{"$error":"#DIV/0!"}]
[null,"- najemnina lokacija 1",null,null,{"$error":"#DIV/0!"}]
[null,"- najemnina lokacija 2",null,null,{"$error":"#DIV/0!"}]
[null,"-supervizija",null,null,{"$error":"#DIV/0!"}]
[null,"- telefonski stroški",null,null,{"$error":"#DIV/0!"}]
[null,"- stroški drugega materiala (natančno opredelite in navedite te stroške)",null,null,{"$f":"D62/$D$65","v":{"$error":"#DIV/0!"}}]
[null,"po potrebi vstavite vrstice in prekopirajte formule za preračun - ne briši vrstic"]
[null,"Preostanek sredstev",null,{"$f":"F25-D65","v":0}]
[null,"SKUPAJ VSI ODHODKI",null,{"$f":"D36+D44+D48+D55","v":0},{"$f":"SUM(E36:E62)","v":{"$error":"#DIV/0!"}},{"$f":"SUM(F36:F62)","v":{"$error":"#DIV/0!"}}]
[]
[]
[3,"Prosimo, navedite stroške, krite iz sredstev MDDSZ, ki ste jih pridobili preko javnega razpisa za sofinanciranje programov socialnega varstva. Po potrebi dodajte vrstice, še posebej, če imate več različnih stroškov pri odhodkih iz sredstev MDDSZ.\nOPOMBA: V tabeli ne upoštevajte zneskov oz. stroškov sredstev, prejetih od MDDSZ po 82. členu ZIUOPZP."]
[null,"ODHODKI PROGRAMA",null,"Znesek v EUR","V odstotkih"]
[null,"1. Stroški dela redno zaposlenih ",null,{"$f":"SUM(D71:D76)","v":0},null,{"$f":"D70/$D$99","v":{"$error":"#DIV/0!"}}]
[null," - plače zaposlenih ",null,null,{"$f":"D71/$D$99","v":{"$error":"#DIV/0!"}}]
[null,"- delodajalčeve dajatve za socialno varnost",null,null,{"$error":"#DIV/0!"}]
[null,"- regres za letni dopust",null,null,{"$error":"#DIV/0!"}]
[null,"- prevoz na delo",null,null,{"$error":"#DIV/0!"}]
[null,"- stroški prehrane",null,null,{"$error":"#DIV/0!"}]
[null,"- jubilejne nagrade",null,null,{"$error":"#DIV/0!"}]
[null,"po potrebi vstavite vrstice in prekopirajte formule za preračun - ne briši vrstic"]
[null,"2. Stroški zunanjih izvajalcev, vezanih neposredno na program ",null,{"$f":"SUM(D79:D80)","v":0},null,{"$f":"D78/$D$99","v":{"$error":"#DIV/0!"}}]
[null,"- delo na podlagi pogodb",null,null,{"$f":"D79/$D$99","v":{"$error":"#DIV/0!"}}]
[null,"- strošek študentskega dela",null,null,{"$f":"D80/$D$99","v":{"$error":"#DIV/0!"}}]
[null,"po potrebi vstavite vrstice in prekopirajte formule za preračun - ne briši vrstic"]
[null,"3. Povračilo stroškov v zvezi z delom na programu za prostovoljce na osnovi sklenjenih dogovorov",null,{"$f":"SUM(D83:D87)","v":0},null,{"$f":"D82/$D$99","v":{"$error":"#DIV/0!"}}]
[null,"- nagrade prostovoljcem",null,null,{"$f":"D83/$D$99","v":{"$error":"#DIV/0!"}}]
[null,"- potni stroški za prostovoljce",null,null,{"$f":"D84/$D$99","v":{"$error":"#DIV/0!"}}]
[null,"- stroški prehrane za prostovoljce",null,null,{"$f":"D85/$D$99","v":{"$error":"#DIV/0!"}}]
[null," - ovrednoteno prostovoljsko delo",null,null,{"$f":"D86/$D$65","v":{"$error":"#DIV/0!"}}]
[null,"- drugi stroški za prostovoljce (natančno opredelite te stroške)",null,null,{"$f":"D87/$D$99","v":{"$error":"#DIV/0!"}}]
[null,"po potrebi vstavite vrstice in prekopirajte formule za preračun - ne briši vrstic"]
[null,"4. Stroški materiala ter storitev",null,{"$f":"SUM(D90:D96)","v":0},null,{"$f":"D89/$D$99","v":{"$error":"#DIV/0!"}}]
[null," - energija – elektrika",null,null,{"$f":"D90/$D$99","v":{"$error":"#DIV/0!"}}]
[null,"- ogrevanje prostorov",null,null,{"$error":"#DIV/0!"}]
[null,"- najemnina lokacija 1",null,null,{"$error":"#DIV/0!"}]
[null,"- najemnina lokacija 2",null,null,{"$error":"#DIV/0!"}]
[null,"-supervizija",null,null,{"$error":"#DIV/0!"}]
[null,"- telefonski stroški",null,null,{"$error":"#DIV/0!"}]
[null,"- stroški drugega materiala (natančno opredelite in navedite te stroške)",null,null,{"$error":"#DIV/0!"}]
[null,"po potrebi vstavite vrstice in prekopirajte formule za preračun - ne briši vrstic"]
[null,"Preostanek sredstev",null,{"$f":"F11-D99","v":0}]
[null,"SKUPAJ VSI ODHODKI",null,{"$f":"D70+D78+D82+D89","v":0},{"$f":"SUM(E70:E96)","v":{"$error":"#DIV/0!"}},{"$f":"SUM(F70:F96)","v":{"$error":"#DIV/0!"}}]
[]
[]
["Obvezne priloge\nPriložite dokazila o 20-odstotnem sofinanciranju programa v letu 2023 (pogodbe oz. sklepi o sofinanciranju ipd.)."]

{"sheet":"POTREBE","index":7,"n_rows":31,"n_cols":3,"rows_kept":31,"cut":false,"hidden":true,"merged":[[6,2,6,7],[0,0,0,8],[2,1,2,7],[25,2,25,7],[30,2,30,7],[20,2,20,7],[15,2,15,7],[9,2,9,7]]}
["VSEBINSKO POROČILO - POTREBE - za obdobje od 1. 1. 2023 do 31. 12. 2023"]
[]
[1,"Informacije o potrebah bomo uporabili pri drugi nalogi, ki jo je MDDSZ naročil IRSSV, in sicer: Analiza potreb ranljivih skupin prebivalstva po socialnovarstvenih programih in programih v podporo družinam.\nProsimo, odgovorite na spodnja vprašanja, ki se nanašajo na POTREBE uporabnikov:"]
[null,null,"izberite ustrezen odgovor"]
["A","Ali ste v letu 2023 zavrnili kakšno osebo, ki je izrazila željo po vključitvi v program ali pa je bila k vam napotena? "]
[null,"Če DA: Koliko oseb ste zavrnili?"]
[null,"Prosimo, vpišite razloge za zavrnitve."]
[]
[]
["B","Prosimo, navedite ključne, najbolj pogoste izzive, stiske in težave ljudi, ki se k vam obračajo po pomoč, vi pa jih v okviru vašega programa zaradi različnih razlogov ne morete nasloviti."]
[]
[]
[null,null,"izberite ustrezen odgovor"]
["C","Ali ocenjujete, da so v okolju/okoljih, kjer izvajate program, tudi osebe, ki bi se lahko vključile v program, pa se vanj iz različnih razlogov ne vključijo?"]
[null,"Če DA: Koliko je po vaši oceni takšnih uporabnikov?"]
[null,"Zakaj menite, da se t. i. potencialni uporabniki ne vključijo?"]
[]
[]
[null,null,"izberite ustrezen odgovor"]
["D","Ali v okolju oz. okoljih, kjer izvajate vaš program, obstaja dovolj socialnovarstvenih programov, ki odgovarjajo na potrebe ljudi, ki so vaša ciljna skupina?"]
[null,"Če ne, kateri oz. kakšni programi manjkajo in kje (v katerih regijah ali občinah)?"]
[]
[]
[null,null,"izberite ustrezen odgovor"]
["E","Ali lahko s kadrom, ki ga trenutno imate, ustrezno naslovite izzive svojih uporabnikov?"]
[null,"Če ne, koliko in kakšen kader (izobrazbeni profil in izkušnje) bi še potrebovali?"]
[]
[]
[null,null,"izberite ustrezen odgovor"]
["F","Ali lahko z metodami, oblikami dela ter strokovnimi pristopi, ki jih uporabljate, ustrezno naslovite izzive svojih uporabnikov?"]
[null,"Če ne, kakšne oz. katere metode dela in pristope bi morali še uporabljati?"]

{"sheet":"DRUGO","index":8,"n_rows":18,"n_cols":6,"rows_kept":18,"cut":false,"hidden":true,"merged":[[0,0,0,9],[14,1,14,8],[17,1,17,8],[18,1,18,8],[2,5,2,6],[3,1,3,4],[3,5,3,6],[5,1,5,4],[5,5,5,6],[6,1,6,4],[6,5,6,6],[13,1,13,8],[4,1,4,4],[4,5,4,6],[9,1,9,8],[10,1,10,8]]}
["VSEBINSKO POROČILO - DRUGO - za obdobje od 1. 1. 2023 do 31. 12. 2023"]
[]
[1,"Kakovost in svet uporabnikov/uporabniški sosvet. Prosimo izberite oz. vpišite ustrezen odgovor:",null,null,null,"izberite ustrezen odgovor/vpišite besedilo"]
[null,"Ali ima vaša organizacija uveden certificiran način upravljanja s kakovostjo? (izberite ustrezen odgovor)\n"]
[null,"          Če ste označili DA, kateri certifikat imate? (vpišite v desno polje)"]
[null,"Ali v vašem programu deluje svet uporabnikov oz. uporabniški sosvet? (izberite ustrezen odgovor)\n"]
[null,"          Če ste označili DA, prosimo vpišite še število srečanj v letu 2023: (vpišite v desno polje)"]
[]
[]
[2,"Če je program v letu 2023 prejel dodatna sredstva od MDDSZ po 82. členu ZIUOPZP, prosimo, opišite, na kakšen način ste ta sredstva porabili.\nKoliko novih uporabnikov ste vključili (ocena)? Ali je šlo za bolj intenzivno in poglobljeno delo z že obstojelimi uporabniki? Koliko dodatnega kadra ste s tem lahko financirali? Za kaj ste še porabili ta dodatna sredstva?"]
[]
[]
[]
[3,"Prosimo, opozorite nas na posebnosti in težave pri izvajanju programa, za katere menite, da jih je potrebno upoštevati pri ocenjevanju vašega poročila. Opišite morebitne druge značilnosti programa, ki jih druga vprašanja ne predvidevajo. "]
[]
[]
[]
[4,"Prosimo, navedite morebitne opombe, komentarje, predloge."]

{"sheet":"NAVODILA EVAPRO","index":9,"n_rows":23,"n_cols":5,"rows_kept":23,"cut":false,"hidden":true,"merged":[[0,0,0,8],[4,1,4,7],[22,1,22,3],[2,1,2,7],[6,2,6,7],[7,2,7,7],[8,2,8,7],[17,2,17,7],[16,1,16,7],[11,1,11,7],[21,4,21,7],[21,1,21,3],[20,1,20,7],[5,2,5,7],[12,2,12,7],[12,1,13,1],[13,2,13,7],[22,4,22,7]]}
["EVAPRO - POMOČ PRI IZPOLNJEVANJU"]
[]
[null,"Prosimo, za lažje izpolnjevenje sledite navodilom, katere tabele iz aplikacije EVAPRO© lahko skopirate oz. prilepite v obrazec:"]
[]
[null,"Zavihek: UPORABNIKI"]
[null,"VPR. 1","Podatke o prvih štiri alinejah: »Skupaj število različnih uporabnikov«; »Število uporabnikov v t. i. GLAVNEM programu«; »...od tega uporabnikov ŽENSKEGA SPOLA« in »Število uporabnikov v PODPROGRAMIH« - Lahko uporabite izpis iz aplikacije EVAPRO©, rubrika »vsi uporabniki« v sklopu \"pregledi\" s pomočjo rdeče tipke »razširi filter«, kjer izberete spol in postopke (podprograme)."]
[null,"VPR. 2","Povprečno število ur aktivne vključenosti enega uporabnika na mesec - Lahko uporabite izpis iz aplikacije EVAPRO©, rubrika v sklopu \"vključenost uporabnikov\", stolpca  \"Število vključenih uporabnikov - skupaj\" in \"Povprečno število ur vključenosti - skupaj\"."]
[null,"VPR. 3","Mladoletni uporabniki - Lahko uporabite izpis iz aplikacije EVAPRO©, rubrika v sklopu \"poročila\" z imenom »po star. skupinah«, rdeča tipka \"razširi filter\", s katero lahko v rubriki \"leta starosti\" oblikujete to poročilo (v parametre vstavite vrednosti 15, 18). "]
[null,"VPR. 4","Število uporabnikov glede na čas/obdobje njihove vključitve v program - Lahko uporabite izpis iz aplikacije EVAPRO©, rubrika v sklopu \"poročila\" z imenom »upor. glede na čas«."]
[]
[]
[null,"Zavihek: KADRI"]
[null,"VPR. 4","Skupaj opravljeno število ur prostovoljnega dela - Lahko uporabite izpis iz aplikacije EVAPRO©, rubrika \"postopki\" v sklopu \"poročila\",  uporabite rdečo tipko \"razširi filter\" in označite status izvajalca kot \"prostovoljec\". Spodaj v tabeli se izpiše število ur."]
[null,null,"Število prostovoljcev po spolu: - Lahko uporabite izpis iz aplikacije EVAPRO©, rubrika \"postopki\" v sklopu \"poročila\",  uporabite rdečo tipko\"razširi filter\" in označite status izvajalca kot \"prostovoljec\" ter označite spol. Spodaj v tabeli se izpiše skupno število prostovoljcev oz. število prostovoljcev po spolu."]
[]
[]
[null,"Zavihek: EVALVACIJA"]
[null,"VPR. 4","Prosimo, prilepite oz. prekopirajte izpis izvedenih postopkov iz aplikacije EVAPRO©, rubrika v sklopu \"poročila\" z imenom »postopki«."]
[]
[]
[null,"Zavihek: KAPACITETE"]
[null,"Programi za prepovedane droge – visoki prag, \nalkoholizem, stanovanjske skupine, namestitveni programi, programi za spodbujanje socialne vključenosti in neodvisnega življenja invalidov",null,null,"Prilepite oz. prekopirajte izpis o uporabnikih/nočitvah iz aplikacije EVAPRO©, rubrika v sklopu \"poročila\" z imenom z imenom »zasedenost ležišč«."]
[null,"Programi materinskih domov, \nvarnih hiš, zatočišč in kriznih centrov",null,null,"Prilepite oz. prekopirajte izpis o uporabnikih/nočitvah iz aplikacije EVAPRO©, rubrika v sklopu \"poročila\" z imenom z imenom »zasedenost sob«."]

{"sheet":"EVALVACIJA","index":10,"n_rows":38,"n_cols":8,"rows_kept":38,"cut":false,"hidden":true,"merged":[[0,0,0,8],[37,3,37,4],[36,1,36,7],[2,1,2,8],[21,1,21,4],[22,1,22,4],[19,1,19,8],[32,1,32,4],[33,1,33,4],[20,1,20,4],[25,1,25,4],[31,1,31,4],[23,1,23,4],[24,1,24,4],[26,1,26,4],[27,1,27,4],[28,1,28,4],[29,1,29,4],[30,1,30,4],[15,4,15,7],[16,4,16,7],[17,1,17,7],[3,1,3,3],[4,1,4,3],[5,1,5,3],[6,1,6,3],[7,1,7,3],[13,1,13,3],[14,1,14,3],[15,1,15,3],[16,1,16,3],[3,4,3,7],[4,4,4,7],[5,4,5,7],[6,4,6,7],[7,4,7,7],[8,4,8,7],[9,4,9,7],[10,4,10,7],[11,4,11,7],[12,4,12,7],[13,4,13,7],[14,4,14,7],[8,1,8,3],[9,1,9,3],[10,1,10,3],[11,1,11,3],[12,1,12,3]]}
["EVALVACIJSKI DEL - za obdobje od 1. 1. 2023 do 31. 12. 2023"]
[]
[1,"Prosimo, navedite in opišite cilje, ki jim sledite v vašem programu."]
[null,"Cilj",null,null,"Obrazložitev cilja"]
[]
[]
[]
[]
[]
[]
[]
[]
[]
[]
[]
[]
[]
[null,"po potrebi vstavite vrstice"]
[]
[2,"Prosimo, vpišite število izpolnjenih vprašalnikov po posameznem tipu vprašalnika."]
[null,"Tip vprašalnika\n(izberite iz spustnega seznama)",null,null,null,"Število izpolnjenih vprašalnikov"]
[]
[]
[]
[]
[]
[]
[]
[]
[null,"Drugo (prosimo, vpišite):"]
[null,"Drugo (prosimo, vpišite):"]
[null,"Drugo (prosimo, vpišite):"]
[null,"Drugo (prosimo, vpišite):"]
[null,"Drugo (prosimo, vpišite):"]
[]
[]
[3,"Prosimo, prilepite oz. prekopirajte izpis izvedenih postopkov iz aplikacije EVAPRO©, rubrika v sklopu \"poročila\" z imenom »postopki«."]
[null,"Šifra postopka","Ime postopka","Porabljen čas",null,"Število izvajanj","Število izvajalcev","Števillo uporabnikov"]

{"sheet":"KAPACITETE 1","index":11,"n_rows":20,"n_cols":8,"rows_kept":20,"cut":false,"hidden":true,"merged":[[0,0,0,8],[2,0,2,6]]}
["EVALVACIJSKI DEL - IZPIS KAPACITET - za obdobje od 1. 1. 2023 do 31. 12. 2023"]
[]
["Prosimo, prilepite oz. prekopirajte izpis o uporabnikih/nočitvah iz aplikacije EVAPRO©, rubrika v sklopu \"poročila\" z imenom z imenom »zasedenost ležišč«."]
[]
["Obdobje","Razpoložljiva ležišča","Skupaj","Polnoletni","Mladoletni","Neznan datum rojstva","Rezervirana ležišča","Zasedenost v %*"]
["Januar"]
["Februar"]
["Marec"]
["April"]
["Maj"]
["Junij"]
["Julij"]
["Avgust"]
["September"]
["Oktober"]
["November"]
["December"]
["Povprečje 1. 1. - 30. 6."]
["Povprečje 1. 7. - 31. 12."]
["Povprečje 1. 1. - 31. 12."]

{"sheet":"KAPACITETE 2","index":12,"n_rows":20,"n_cols":7,"rows_kept":20,"cut":false,"hidden":true,"merged":[[0,0,0,7],[2,0,2,6]]}
["EVALVACIJSKI DEL - IZPIS KAPACITET - za obdobje od 1. 1. 2023 do 31. 12. 2023"]
[]
["Prosimo, prilepite oz. prekopirajte izpis o uporabnikih/nočitvah iz aplikacije EVAPRO©, rubrika v sklopu \"poročila\" z imenom z imenom »zasedenost sob«."]
[]
["Obdobje","Razpoložljive sobe","Skupaj","Ženske","Otroci","Rezervirane sobe","Zasedenost v %*"]
["Januar"]
["Februar"]
["Marec"]
["April"]
["Maj"]
["Junij"]
["Julij"]
["Avgust"]
["September"]
["Oktober"]
["November"]
["December"]
["Povprečje 1. 1. - 30. 6."]
["Povprečje 1. 7. - 31. 12."]
["Povprečje 1. 1. - 31. 12."]

{"sheet":"matrika","index":13,"n_rows":235,"n_cols":20,"rows_kept":235,"cut":false,"hidden":true,"merged":[[0,9,0,13],[0,17,0,18]]}
["področje","podpodročje1","podpodročje2","podpodročje3","podpodročje4","podpodročje5","podpodročje6",null,null,"zavihki, ki se morajo prikazati za to podpodročje",null,null,null,null,"IF korak 3","IF korak 3",null,"IF korak \"3 = DA\" + IF korak \"2\" - ena od spodnjih opcij",null,"prikaži list KAPACITETE"]
["NASILJE","MATERINSKI DOMOVI","VARNE HIŠE, ZATOČIŠČA IN KRIZNI CENTRI","SVETOVALNICE","PROGRAMI PREVENTIVE","PROGRAMI TELEFONSKEGA SVETOVANJA",null,null,null,"navodila","splošno","vsebina","finance","opombe","vsebina in evalvacija","postopki",null,"MATERINSKI DOMOVI","VARNE HIŠE, ZATOČIŠČA IN KRIZNI CENTRI","kapacitete 2"]
["ZASVOJENI","PREPOVEDANE DROGE – VISOKI PRAG","PREPOVEDANE DROGE - NIZKI PRAG","PREPOVEDANE DROGE – PREVENTIVNI PROGRAMI","ALKOHOLIZEM","MOTNJE HRANJENJA","PREPREČEVANJE PREKOMERNE RABE IKT",null,null,"navodila","splošno","vsebina","finance","opombe","vsebina in evalvacija","postopki",null,"PREPOVEDANE DROGE – VISOKI PRAG","ALKOHOLIZEM","kapacitete 1"]
["DUŠEVNO_ZDRAVJE","STANOVANJSKE SKUPINE","DNEVNI CENTRI","INFORMACIJSKE PISARNE IN SVETOVALNICE","PROGRAMI TELEFONSKEGA SVETOVANJA","ZAGOVORNIŠTVO",null,null,null,"navodila","splošno","vsebina","finance","opombe","vsebina in evalvacija","postopki",null,"STANOVANJSKE SKUPINE",null,"kapacitete 1"]
["BREZDOMCI","NAMESTITVENI PROGRAMI","DNEVNI PROGRAMI","DELOŽACIJE",null,null,null,null,null,"navodila","splošno","vsebina","finance","opombe","vsebina in evalvacija","postopki",null,"NAMESTITVENI PROGRAMI",null,"kapacitete 1"]
["OTROCI_MLADOSTNIKI","DNEVNI CENTRI ZA OTROKE IN MLADOSTNIKE S PREVENTIVNIM DELOM IN SVETOVANJEM","PREVENTIVNI PROGRAMI","PROGRAMI TELEFONSKEGA SVETOVANJA",null,null,null,null,null,"navodila","splošno","vsebina","finance","opombe","vsebina in evalvacija","postopki"]
["STAREJŠI","MEDGENERACIJSKA SREDIŠČA","PROGRAMI ZA STAREJŠE","PROGRAMI ZA OSEBE Z DEMENCO IN NJIHOVE SVOJCE",null,null,null,null,null,"navodila","splošno","vsebina","finance","opombe","vsebina in evalvacija","postopki"]
["INVALIDI","PROGRAMI OSEBNE ASISTENCE IN MREŽE SPREMLJEVALCEV","PROGRAMI ZA SPODBUJANJE SOCIALNE VKLJUČENOSTI IN NEODVISNEGA ŽIVLJENJA INVALIDOV",null,null,null,null,null,null,"navodila","splošno","vsebina","finance","opombe","vsebina in evalvacija","postopki",null,"PROGRAMI ZA SPODBUJANJE SOCIALNE VKLJUČENOSTI IN NEODVISNEGA ŽIVLJENJA INVALIDOV",null,"kapacitete 1"]
["PSIHOSOCIALNA_POMOČ","SPECIALIZIRANI PROGRAMI PSIHOSOCIALNE POMOČI OTROKOM, ODRASLIM ALI DRUŽINAM",null,null,null,null,null,null,null,"navodila","splošno","vsebina","finance","opombe","vsebina in evalvacija","postopki"]
["ROMI","PROGRAMI ZA ROME",null,null,null,null,null,null,null,"navodila","splošno","vsebina","finance","opombe","vsebina in evalvacija","postopki"]
["DRUGI_PROGRAMI","DRUGI PROGRAMI",null,null,null,null,null,null,null,"navodila","splošno","vsebina","finance","opombe","vsebina in evalvacija","postopki"]
[]
[]
[]
["Dokumentacija o programu"]
["Dokumentacija za uporabnike"]
["Vprašalnik za uporabnike ob vstopu"]
["Vprašalnik za uporabnike ob evalvaciji /izstopu iz programa"]
["Vprašalnik za uporabnike po razgovoru oz. Vprašalnik o svetovalnem pogovoru"]
["Vprašalnik za oceno programa oz. Vprašalnik ocena programa za anonimne uporabnike"]
["Vprašalnik o oceni programa za svojce"]
[]
[]
["AJDOVŠČINA"]
["ANKARAN"]
["APAČE"]
["BELTINCI"]
["BENEDIKT"]
["BISTRICA OB SOTLI"]
["BLED"]
["BLOKE"]
["BOHINJ"]
["BOROVNICA"]
["BOVEC"]
["BRASLOVČE"]
["BRDA"]
["BREZOVICA"]
["BREŽICE"]
["CANKOVA"]
["CELJE"]
["CERKLJE NA GORENJSKEM"]
["CERKNICA"]
["CERKNO"]
["CERKVENJAK"]
["CIRKULANE"]
["ČRENŠOVCI"]
["ČRNA NA KOROŠKEM"]
["ČRNOMELJ"]
["DESTRNIK"]
["DIVAČA"]
["DOBJE"]
["DOBREPOLJE"]
["DOBRNA"]
["DOBROVA-POLHOV GRADEC"]
["DOBROVNIK"]
["DOL PRI LJUBLJANI"]
["DOLENJSKE TOPLICE"]
["DOMŽALE"]
["DORNAVA"]
["DRAVOGRAD"]
["DUPLEK"]
["GORENJA VAS-POLJANE"]
["GORIŠNICA"]
["GORJE"]
["GORNJA RADGONA"]
["GORNJI GRAD"]
["GORNJI PETROVCI"]
["GRAD"]
["GROSUPLJE"]
["HAJDINA"]
["HOČE SLIVNICA"]
["HODOŠ"]
["HORJUL"]
["HRASTNIK"]
["HRPELJE-KOZINA"]
["IDRIJA"]
["IG"]
["ILIRSKA BISTRICA"]
["IVANČNA GORICA"]
["IZOLA"]
["JESENICE"]
["JEZERSKO"]
["JURŠINCI"]
["KAMNIK"]
["KANAL OB SOČI"]
["KIDRIČEVO"]
["KOBARID"]
["KOBILJE"]
["KOČEVJE"]
["KOMEN"]
["KOMENDA"]
["KOPER"]
["KOSTANJEVICA NA KRKI"]
["KOSTEL"]
["KOZJE"]
["KRANJ"]
["KRANJSKA GORA"]
["KRIŽEVCI"]
["KRŠKO"]
["KUNGOTA"]
["KUZMA"]
["LAŠKO"]
["LENART"]
["LENDAVA"]
["LITIJA"]
["LJUBLJANA"]
["LJUBNO"]
["LJUTOMER"]
["LOGATEC"]
["LOG-DRAGOMER"]
["LOŠKA DOLINA"]
["LOŠKI POTOK"]
["LOVRENC NA POHORJU"]
["LUČE"]
["LUKOVICA"]
["MAJŠPERK"]
["MAKOLE"]
["MARIBOR"]
["MARKOVCI"]
["MEDVODE"]
["MENGEŠ"]
["METLIKA"]
["MEŽICA"]
["MIKLAVŽ NA DRAVSKEM POLJU"]
["MIREN-KOSTANJEVICA"]
["MIRNA"]
["MIRNA PEČ"]
["MISLINJA"]
["MOKRONOG - TREBELNO"]
["MORAVČE"]
["MORAVSKE TOPLICE"]
["MOZIRJE"]
["MURSKA SOBOTA"]
["MUTA"]
["NAKLO"]
["NAZARJE"]
["NOVA GORICA"]
["NOVO MESTO"]
["ODRANCI"]
["OPLOTNICA"]
["ORMOŽ"]
["OSILNICA"]
["PESNICA"]
["PIRAN"]
["PIVKA"]
["PODČETRTEK"]
["PODLEHNIK"]
["PODVELKA"]
["POLJČANE"]
["POLZELA"]
["POSTOJNA"]
["PREBOLD"]
["PREDDVOR"]
["PREVALJE"]
["PTUJ"]
["PUCONCI"]
["RAČE-FRAM"]
["RADEČE"]
["RADENCI"]
["RADLJE OB DRAVI"]
["RADOVLJICA"]
["RAVNE NA KOROŠKEM"]
["RAZKRIŽJE"]
["REČICA OB SAVINJI"]
["RENČE-VOGRSKO"]
["RIBNICA"]
["RIBNICA NA POHORJU"]
["ROGAŠKA SLATINA"]
["ROGAŠOVCI"]
["ROGATEC"]
["RUŠE"]
["SELNICA OB DRAVI"]
["SEMIČ"]
["SEVNICA"]
["SEŽANA"]
["SLOVENJ GRADEC"]
["SLOVENSKA BISTRICA"]
["SLOVENSKE KONJICE"]
["SODRAŽICA"]
["SOLČAVA"]
["SREDIŠČE OB DRAVI"]
["STARŠE"]
["STRAŽA"]
["SVETA ANA"]
["SVETA TROJICA V SLOVENSKIH GORICAH"]
["SVETI ANDRAŽ V SLOVENSKIH GORICAH"]
["SVETI JURIJ OB ŠČAVNICI"]
["SVETI JURIJ V SLOVENSKIH GORICAH"]
["SVETI TOMAŽ"]
["ŠALOVCI"]
["ŠEMPETER-VRTOJBA"]
["ŠENČUR"]
["ŠENTILJ"]
["ŠENTJERNEJ"]
["ŠENTJUR"]
["ŠENTRUPERT"]
["ŠKOCJAN"]
["ŠKOFJA LOKA"]
["ŠKOFLJICA"]
["ŠMARJE PRI JELŠAH"]
["ŠMARJEŠKE TOPLICE"]
["ŠMARTNO OB PAKI"]
["ŠMARTNO PRI LITIJI"]
["ŠOŠTANJ"]
["ŠTORE"]
["TABOR"]
["TIŠINA"]
["TOLMIN"]
["TRBOVLJE"]
["TREBNJE"]
["TRNOVSKA VAS"]
["TRZIN"]
["TRŽIČ"]
["TURNIŠČE"]
["VELENJE"]
["VELIKA POLANA"]
["VELIKE LAŠČE"]
["VERŽEJ"]
["VIDEM"]
["VIPAVA"]
["VITANJE"]
["VODICE"]
["VOJNIK"]
["VRANSKO"]
["VRHNIKA"]
["VUZENICA"]
["ZAGORJE OB SAVI"]
["ZAVRČ"]
["ZREČE"]
["ŽALEC"]
["ŽELEZNIKI"]
["ŽETALE"]
["ŽIRI"]
["ŽIROVNICA"]
["ŽUŽEMBERK"]

{"sheet":"matrika_3","index":14,"n_rows":31,"n_cols":13,"rows_kept":31,"cut":false,"hidden":true,"merged":[[26,0,27,0],[1,0,5,0],[1,2,30,2],[1,3,30,3],[1,4,30,4],[12,0,16,0],[6,0,11,0],[17,0,19,0],[20,0,22,0],[23,0,25,0],[0,2,0,7],[0,9,0,11],[1,9,30,9],[1,5,30,5],[1,6,30,6],[1,7,30,7],[1,8,30,8],[1,10,30,10],[1,11,30,11]]}
["področje","podpodročje","vsem se odprejo zavihki",null,null,null,null,null,"IF korak 3 = NE","IF korak 3 = DA",null,null,"IF korak \"3 = DA\" + IF korak \"2\" = izbrano podpodročje"]
["NASILJE","MATERINSKI DOMOVI","navodila","splošno","uporabniki","podprogrami","kadri","finance","drugo","navodila evapro","evalvacija","drugo E","kapacitete 2"]
[null,"VARNE HIŠE, ZATOČIŠČA IN KRIZNI CENTRI",null,null,null,null,null,null,null,null,null,null,"kapacitete 2"]
[null,"SVETOVALNICE"]
[null,"PROGRAMI PREVENTIVE"]
[null,"PROGRAMI TELEFONSKEGA SVETOVANJA"]
["ZASVOJENI","PREPOVEDANE DROGE – VISOKI PRAG",null,"splošno","uporabniki","podprogrami","kadri","finance","drugo",null,"evalvacija","drugo E","kapacitete 1"]
[null,"PREPOVEDANE DROGE - NIZKI PRAG"]
[null,"PREPOVEDANE DROGE – PREVENTIVNI PROGRAMI"]
[null,"ALKOHOLIZEM",null,null,null,null,null,null,null,null,null,null,"kapacitete 1"]
[null,"MOTNJE HRANJENJA"]
[null,"PREPREČEVANJE PREKOMERNE RABE IKT"]
["DUŠEVNO_ZDRAVJE","STANOVANJSKE SKUPINE",null,"splošno","uporabniki","podprogrami","kadri","finance","drugo",null,"evalvacija","drugo E","kapacitete 1"]
[null,"DNEVNI CENTRI"]
[null,"INFORMACIJSKE PISARNE IN SVETOVALNICE"]
[null,"PROGRAMI TELEFONSKEGA SVETOVANJA"]
[null,"ZAGOVORNIŠTVO"]
["BREZDOMCI","NAMESTITVENI PROGRAMI",null,"splošno","uporabniki","podprogrami","kadri","finance","drugo",null,"evalvacija","drugo E","kapacitete 1"]
[null,"DNEVNI PROGRAMI"]
[null,"DELOŽACIJE"]
["OTROCI_MLADOSTNIKI","DNEVNI CENTRI ZA OTROKE IN MLADOSTNIKE S PREVENTIVNIM DELOM IN SVETOVANJEM",null,"splošno","uporabniki","podprogrami","kadri","finance","drugo",null,"evalvacija","drugo E"]
[null,"PREVENTIVNI PROGRAMI"]
[null,"PROGRAMI TELEFONSKEGA SVETOVANJA"]
["STAREJŠI","MEDGENERACIJSKA SREDIŠČA",null,"splošno","uporabniki","podprogrami","kadri","finance","drugo",null,"evalvacija","drugo E"]
[null,"PROGRAMI ZA STAREJŠE"]
[null,"PROGRAMI ZA OSEBE Z DEMENCO IN NJIHOVE SVOJCE"]
["INVALIDI","PROGRAMI OSEBNE ASISTENCE IN MREŽE SPREMLJEVALCEV",null,"splošno","uporabniki","podprogrami","kadri","finance","drugo",null,"evalvacija","drugo E"]
[null,"PROGRAMI ZA SPODBUJANJE SOCIALNE VKLJUČENOSTI IN NEODVISNEGA ŽIVLJENJA INVALIDOV",null,null,null,null,null,null,null,null,null,null,"kapacitete 1"]
["PSIHOSOCIALNA_POMOČ","SPECIALIZIRANI PROGRAMI PSIHOSOCIALNE POMOČI OTROKOM, ODRASLIM ALI DRUŽINAM",null,"splošno","uporabniki","podprogrami","kadri","finance","drugo",null,"evalvacija","drugo E"]
["ROMI","PROGRAMI ZA ROME",null,"splošno","uporabniki","podprogrami","kadri","finance","drugo",null,"evalvacija","drugo E"]
["DRUGI_PROGRAMI","DRUGI PROGRAMI",null,"splošno","uporabniki","podprogrami","kadri","finance","drugo",null,"evalvacija","drugo E"]